[Event "VII Totalizator Sportowy 2022"]
[Site "Bydgoszcz"]
[Date "2022.06.30"]
[Round "6.4"]
[White "Czarnota, Pawel"]
[Black "Sieciechowicz, Marcin"]
[Result "1-0"]
[ECO "C02"]
[WhiteElo "2502"]
[BlackElo "2388"]
[Annotator "TA"]
[PlyCount "117"]
[EventDate "2022.06.25"]
[EventType "swiss"]
[EventCountry "POL"]
[SourceTitle "playchess.com"]
[Source "ChessBase"]
[SourceQuality "1"]
[TimeControl "40/5400+30:1800+30"]

{[%evp 11,117,-2,0,-11,-18,-28,-35,-28,-41,-35,-33,-33,-30,-45,-32,-45,-8,-20,-21,-8,30,33,30,25,18,11,40,41,43,40,54,27,23,27,27,38,34,24,25,19,95,95,96,106,97,65,97,75,129,120,120,120,143,134,134,69,145,120,119,94,158,158,157,142,140,131,104,104,170,170,198,242,215,222,353,322,330,331,544,511,601,528,518,489,406,400,441,407,588,588,588,588,996,565,881,821,29972,29972,29969,29971,29964,4967,29985,29986,29986,29987,29994,1513]} 1. e4 {[%emt 0:00:04]} e6 {[%emt 0:00:04]} 2. d4 {[%emt 0:00:13]} d5 {[%emt 0:00:08]} 3. e5 {[%emt 0:00:39]} c5 {[%emt 0:01:03]} 4. c3 {[%emt 0:00:23]} Qb6 {[%emt 0:00:17]} 5. Nf3 {[%emt 0:00:58]} Nc6 {[%emt 0:00:07]} 6. Bd3 {[%emt 0:01:08]} cxd4 {[%emt 0:00:57]} 7. O-O $1 {[%emt 0:00:55][%mdl 4] is now more promising than 7.cxd4. C02: French: Advance Variation.} Bd7 {[%emt 0:01:34]} 8. Nbd2 {[%emt 0:01:55]} Nge7 {[%emt 0:03:59]} 9. Nb3 {[%emt 0:01:42][%cal Rb3d4] Black is slightly better.} dxc3 {[%emt 0:06:27]} 10. bxc3 {[%emt 0:00:39]} Ng6 {[%emt 0:01:48]} 11. Re1 {[%emt 0:03:17]} Be7 {[%emt 0:02:35]} 12. Qe2 {[%emt 0:17:15]} O-O {[%emt 0:03:11]} 13. Rb1 {[%emt 0:02:47][%cal Oh2h4]} Qc7 {[%emt 0:04:06]} 14. Nbd4 {[%emt 0:04:04][%cal Oh2h4] [#]} Nxd4 $146 {[%emt 0:04:13]} ({Predecessor:} 14... a6 15. g3 Nxd4 16. cxd4 Bb5 17. Bxb5 axb5 18. Rxb5 Ra4 19. Be3 Rfa8 20. Reb1 Rxa2 21. Rxb7 Qxb7 22. Qxa2 {½-½ (50) Blomqvist,E (2535)-Iskusnyh,S (2473) Chess.com INT 2021}) 15. cxd4 {[%emt 0:00:16][%cal Oh2h4]} f5 {[%emt 0:11:52]} 16. exf6 {[%emt 0:07:24]} Bxf6 {[%emt 0:00:12]} 17. Bxg6 {[%emt 0:02:27]} hxg6 {[%emt 0:00:03]} 18. Bd2 {[%emt 0:07:31]} Qc4 {[%emt 0:12:05]} 19. Rxb7 {[%emt 0:01:17]} Qxe2 {[%emt 0:00:23]} 20. Rxe2 {[%emt 0:00:07]} Bc6 {[%emt 0:02:20]} 21. Rb2 {[%emt 0:06:01]} Rab8 {[%emt 0:04:08]} 22. Bf4 {[%emt 0:08:54]} Rxb2 {[%emt 0:02:03]} 23. Rxb2 {[%emt 0:00:09]} Ba4 {[%emt 0:08:15][%cal Of6d4]} 24. Rb7 {[%emt 0:08:19]} Bd1 {[%emt 0:04:25] A strong pair of Bishops.} 25. Ne5 {[%emt 0:00:43]} Bxe5 {[%emt 0:02:03]} (25... g5 $11 26. Be3 Bxe5 27. dxe5 Rf5) 26. Bxe5 $11 {[%emt 0:00:07][%mdl 4096] Endgame KRB-KRB} Rf7 {[%emt 0:00:03]} 27. Rb8+ {[%emt 0:00:31]} Rf8 {[%emt 0:00:38]} 28. Rb5 {[%emt 0:00:14]} Rf7 {[%emt 0:08:58]} 29. f3 {[%emt 0:00:19]} Be2 {[%emt 0:01:03]} (29... g5 $142) 30. Rb8+ $16 {[%emt 0:01:59]} Rf8 {[%emt 0:00:42]} 31. Rb2 $1 {[%emt 0:00:29]} Bd3 {[%emt 0:02:08] [#]} 32. h4 $1 {[%emt 0:00:43]} Ba6 {[%emt 0:04:58]} 33. a3 {[%emt 0:05:43]} (33. Kf2 $16) 33... Rd8 {[%emt 0:06:46]} ({Black should try} 33... Rf7 $1 $14) 34. Rb8 {[%emt 0:05:47] White is more active.} Rc8 {[%emt 0:00:05]} 35. Rb4 {[%emt 0:02:21]} Rc1+ {[%emt 0:02:05]} (35... Rc4 $142) 36. Kh2 {[%emt 0:00:05]} Rc2 {[%emt 0:01:49]} 37. Rb8+ {[%emt 0:07:54]} Rc8 {[%emt 0:00:02]} 38. Kg3 {[%emt 0:00:46]} Kf8 {[%emt 0:00:48]} 39. Rb4 {[%emt 0:00:23]} Rc2 {[%emt 0:00:19]} (39... Rc4 $16 {was necessary.}) 40. Ra4 $18 {[%emt 0:00:00]} Bf1 {[%emt 0:00:00]} 41. Rxa7 {[%emt 0:01:05]} Rxg2+ {[%emt 0:12:09]} 42. Kf4 {[%emt 0:00:26]} Rh2 {[%emt 0:00:10]} (42... Ke8 $142 43. Rxg7 Kf8) 43. Bxg7+ {[%emt 0:00:49]} ({Weaker is} 43. Rxg7 Rxh4+ 44. Ke3 g5 $16) 43... Ke8 {[%emt 0:00:10]} 44. Bf6 {[%emt 0:01:44]} Be2 $2 {[%emt 0:01:10]} (44... Rc2 45. Ke5 Bd3) 45. a4 {[%emt 0:02:58][%cal Ba3a4,Ba4a5,Ba5a6,Ba6a7][%mdl 32]} Rh3 {[%emt 0:01:03]} 46. Ke5 {[%emt 0:00:19]} Rxf3 {[%emt 0:01:26]} 47. Kxe6 {[%emt 0:00:28][%cal Ra7a8]} Re3+ {[%emt 0:00:19]} 48. Kxd5 {[%emt 0:00:58] Black must now prevent Kd6.} Bf3+ {[%emt 0:00:53]} 49. Kd6 {[%emt 0:00:42] Re7+ is the strong threat.} Rc3 {[%emt 0:00:28]} (49... Rb3 {was worth a try.} 50. Re7+ Kf8) 50. a5 {[%emt 0:01:19]} Rc6+ {[%emt 0:02:10]} 51. Ke5 {[%emt 0:00:13]} Bg2 {[%emt 0:02:19]} 52. Bg5 {[%emt 0:00:58] Threatens to win with a6.} Rc3 {[%emt 0:01:47]} 53. Kf6 {[%emt 0:06:42] And now Kg7 would win.} Rc6+ {[%emt 0:03:16] [#]} 54. Kg7 $1 {[%emt 0:00:19]} Re6 {[%emt 0:00:09]} 55. a6 {[%emt 0:01:06]} Bc6 {[%emt 0:03:16]} 56. Rc7 {[%emt 0:01:04] White wants to mate with a7.} Bd7 {[%emt 0:00:13]} 57. a7 {[%emt 0:00:30] White mates.} Ra6 {[%emt 0:00:06]} 58. d5 {[%emt 0:00:39]} Be6 {[%emt 0:00:06]} 59. Re7+ {[%emt 0:00:22] Weighted Error Value: White=0.14 (very precise) /Black=0.46} 1-0

[Event "VII Totalizator Sportowy 2022"]
[Site "Bydgoszcz"]
[Date "2022.06.30"]
[Round "6.5"]
[White "Maksimenko, Andrei"]
[Black "Jarmula, Lukasz"]
[Result "1/2-1/2"]
[ECO "D26"]
[WhiteElo "2434"]
[BlackElo "2459"]
[Annotator "TA"]
[PlyCount "31"]
[EventDate "2022.06.25"]
[EventType "swiss"]
[EventCountry "POL"]
[SourceTitle "playchess.com"]
[Source "ChessBase"]
[SourceQuality "1"]
[TimeControl "40/5400+30:1800+30"]

{[%evp 18,31,11,0,5,0,10,0,0,0,24,19,20,36,34,38]} 1. d4 {[%emt 0:05:28]} d5 {[%emt 0:00:07]} 2. c4 {[%emt 0:00:07]} dxc4 {[%emt 0:00:06]} 3. Nf3 {[%emt 0:00:17]} Nf6 {[%emt 0:00:06]} 4. e3 {[%emt 0:00:07]} e6 {[%emt 0:00:06]} 5. Bxc4 {[%emt 0:00:04]} c5 {[%emt 0:00:05]} 6. O-O {[%emt 0:00:06]} Nc6 {[%emt 0:00:06]} 7. Qe2 {[%emt 0:00:22]} a6 {[%emt 0:00:18]} 8. Nc3 {[%emt 0:01:04]} b5 {[%emt 0:00:27]} 9. Bb3 {[%emt 0:01:34]} Bb7 {[%emt 0:00:07]} 10. Rd1 {[%emt 0:00:23]} Be7 {[%emt 0:00:26] D28: Queen's Gambit Accepted: Classical main line: 7 Qe2 with early ...Nc6.} 11. d5 {[%emt 0:23:42]} exd5 {[%emt 0:00:29]} 12. Bxd5 {[%emt 0:00:30]} Nxd5 {[%emt 0:05:26]} 13. Nxd5 {[%emt 0:00:34] [#]} Bd6 $146 {[%emt 0:00:41]} ({Predecessor:} 13... O-O 14. a4 Na5 15. Nxe7+ Qxe7 16. axb5 axb5 17. Qxb5 Ba6 18. Qa4 Be2 19. Re1 Bxf3 20. gxf3 {½-½ (40) Matlakov,M (2699)-Popov,I (2608) Yaroslavl 2018}) 14. a4 {[%emt 0:22:15]} O-O $1 {[%emt 0:16:40]} 15. axb5 {[%emt 0:02:19]} axb5 {[%emt 0:00:21]} 16. Rxa8 {[%emt 0:00:03] Weighted Error Value: White=0.04 (flawless) /Black=0.03 (flawless)} 1/2-1/2

[Event "VII Totalizator Sportowy 2022"]
[Site "Bydgoszcz"]
[Date "2022.06.30"]
[Round "6.6"]
[White "Licznerski, Lukasz"]
[Black "Kucza, Karol"]
[Result "0-1"]
[ECO "C82"]
[WhiteElo "2439"]
[BlackElo "2305"]
[Annotator "TA"]
[PlyCount "81"]
[EventDate "2022.06.25"]
[EventType "swiss"]
[EventCountry "POL"]
[SourceTitle "playchess.com"]
[Source "ChessBase"]
[SourceQuality "1"]
[TimeControl "40/5400+30:1800+30"]

{[%evp 23,81,0,0,0,0,0,0,0,4,0,0,0,0,-20,-14,-8,-15,-7,-18,-10,0,-37,-35,-44,-47,-43,-31,-58,-39,-51,0,-22,83,45,38,81,368,0,0,0,0,-161,0,0,0,-168,-154,-156,-137,-106,0,-364,-352,-883,-785,-1160,-1077,-929,-787,-29996]} 1. e4 {[%emt 0:00:06]} e5 {[%emt 0:00:13]} 2. Nf3 {[%emt 0:00:02]} Nc6 {[%emt 0:00:07]} 3. Bb5 {[%emt 0:00:46]} a6 {[%emt 0:00:25]} 4. Ba4 {[%emt 0:00:05]} Nf6 {[%emt 0:00:06]} 5. O-O {[%emt 0:00:05]} Nxe4 {[%emt 0:00:05]} 6. d4 {[%emt 0:05:30]} b5 {[%emt 0:00:09]} 7. Bb3 {[%emt 0:00:08]} d5 {[%emt 0:00:05]} 8. dxe5 {[%emt 0:00:05]} Be6 {[%emt 0:00:05]} 9. c3 {[%emt 0:01:37]} Bc5 {[%emt 0:00:38]} 10. Nbd2 {[%emt 0:00:34][%cal Bb1d2,Bd2f1,Bf1g3][%mdl 32]} O-O {[%emt 0:00:10]} 11. Bc2 {[%emt 0:00:34]} Nxf2 {[%emt 0:00:23]} 12. Rxf2 {[%emt 0:00:02]} f6 {[%emt 0:00:10]} 13. Nf1 {[%emt 0:12:06] Be3 is the strong threat. is currently scoring better than 13.exf6. C82: Open Ruy Lopez: 9 c3 without 9...Be7.} Bxf2+ {[%emt 0:00:23]} 14. Kxf2 {[%emt 0:00:03]} fxe5 {[%emt 0:00:10]} 15. Kg1 {[%emt 0:01:31][%cal Oc2h7] Strongly threatening Bxh7+! The position is equal.} Qd7 {[%emt 0:00:42]} 16. Ng5 {[%emt 0:35:52]} Bf5 {[%emt 0:08:14] [#]} 17. Bxf5 $146 {[%emt 0:00:02]} (17. Ne3 Bxc2 18. Nxc2 (18. Qxc2 e4 $17) 18... h6 $17) ({Predecessor:} 17. Bb3 Ne7 18. Ne3 c6 19. Nxf5 Nxf5 20. a4 h6 21. Nf3 Rae8 22. axb5 axb5 23. Qe2 {0-1 (57) Agostini,V-Senishchev,A (2317) ICCF email 2000}) 17... Rxf5 {[%emt 0:00:42]} (17... Qxf5 18. Qxd5+ Kh8 19. Be3 $16) 18. Ng3 {[%emt 0:00:02]} Rff8 {[%emt 0:16:55]} 19. Be3 {[%emt 0:03:32]} h6 {[%emt 0:08:40]} 20. Nf3 {[%emt 0:00:06]} Rad8 {[%emt 0:01:14]} 21. Bc5 {[%emt 0:08:43]} Rf7 {[%emt 0:02:14]} 22. Qe2 {[%emt 0:01:18]} e4 {[%emt 0:01:19]} 23. Ne1 {[%emt 0:00:49]} Ne5 {[%emt 0:03:28]} 24. Rd1 {[%emt 0:09:20]} Ng6 {[%emt 0:04:05]} 25. Nh5 {[%emt 0:01:58]} (25. Nxe4 $2 Re8 26. Qd2 (26. Qh5 $2 Nf4 $19) 26... Rxe4 $19) 25... Re8 {[%emt 0:08:04]} 26. b4 {[%emt 0:07:50]} Re5 {[%emt 0:01:18][%cal Oe5h5] And now ...Rxh5! would win.} 27. Nc2 {[%emt 0:01:45]} Rxh5 {[%emt 0:08:35]} 28. Qxh5 $16 {[%emt 0:00:46]} Nf4 {[%emt 0:00:06]} 29. Qh4 {[%emt 0:01:33]} (29. Qe5 Qg4 30. Qe8+ Kh7) 29... g5 $2 {[%emt 0:00:06][%mdl 8192]} (29... Ne2+ $16 30. Kh1 Nxc3) 30. Qe1 $2 {[%emt 0:04:48]} (30. Qxh6 $18 Ne2+ 31. Kh1 Ng3+ 32. hxg3) 30... Nxg2 $1 $11 {[%emt 0:01:59]} 31. Qg3 {[%emt 0:00:57]} Nf4 $36 {[%emt 0:03:50][%mdl 2048] White must now prevent ...Ne2+. Black has some pressure.} 32. Re1 {[%emt 0:01:51] Prevents Ne2+.} (32. Kh1 $11) 32... Nh5 {[%emt 0:03:07][%mdl 1024] Black has strong compensation.} (32... Nd3 33. Rf1 $11) 33. Qg2 {[%emt 0:00:01]} Nf4 {[%emt 0:00:08]} 34. Qg3 {[%emt 0:00:02] [#]} Nh3+ $1 {[%emt 0:08:26]} ({And not} 34... Nd3 35. Rf1 $11) 35. Kh1 {[%emt 0:00:07]} Rf3 {[%emt 0:00:05]} 36. Qe5 {[%emt 0:01:54] [#]} Nf4 {[%emt 0:00:05]} (36... Qf7 $1 $17 {( -> ...Rf1+)} 37. Bg1 (37. Ne3 Rxe3) 37... Nf4) 37. Rd1 {[%emt 0:01:56][%mdl 8192] Against Rf1+} (37. Qf6 $1 $11 {and White stays safe.}) 37... Nd3 $19 {[%emt 0:04:20]} 38. Rxd3 {[%emt 0:00:04]} (38. Qd4) 38... exd3 {[%emt 0:00:05] Black is clearly winning.} 39. Ne3 {[%emt 0:00:50] Prevents Rf1+.} Qf7 {[%emt 0:01:53][%cal Of3f1]} 40. Kg1 {[%emt 0:00:00] Prevents Rf1+.} d2 {[%emt 0:00:00]} 41. Bd4 {[%emt 0:05:47] Black used his chance.  Weighted Error Value: White=0.85/Black=0.40} 0-1

[Event "VII Totalizator Sportowy 2022"]
[Site "Bydgoszcz"]
[Date "2022.06.30"]
[Round "6.7"]
[White "Hnydiuk, Aleksander"]
[Black "Malek, Jan"]
[Result "1/2-1/2"]
[ECO "E04"]
[WhiteElo "2394"]
[BlackElo "2316"]
[Annotator "TA"]
[PlyCount "70"]
[EventDate "2022.06.25"]
[EventType "swiss"]
[EventCountry "POL"]
[SourceTitle "playchess.com"]
[Source "ChessBase"]
[SourceQuality "1"]
[TimeControl "40/5400+30:1800+30"]

{[%evp 23,70,21,16,18,18,18,19,9,18,11,9,11,21,17,18,13,23,27,27,10,11,0,3,1,3,6,9,0,0,0,0,0,3,3,2,6,6,8,7,7,10,5,3,0,0,0,0,0,0]} 1. Nf3 {[%emt 0:03:28]} d5 {[%emt 0:00:07]} 2. d4 {[%emt 0:00:08]} Nf6 {[%emt 0:00:05]} 3. c4 {[%emt 0:00:03]} e6 {[%emt 0:00:06]} 4. g3 {[%emt 0:00:16]} dxc4 {[%emt 0:00:05]} 5. Bg2 {[%emt 0:00:04]} c5 {[%emt 0:00:05]} 6. O-O {[%emt 0:00:09]} Nc6 {[%emt 0:00:05]} 7. dxc5 {[%emt 0:00:12]} Qxd1 {[%emt 0:00:07]} 8. Rxd1 {[%emt 0:00:04]} Bxc5 {[%emt 0:00:09]} 9. Nbd2 {[%emt 0:00:08]} c3 {[%emt 0:00:04]} 10. bxc3 {[%emt 0:00:03][%cal Bb2c3,Bc3c4][%mdl 32]} O-O {[%emt 0:00:07]} 11. Nb3 {[%emt 0:00:04]} Be7 {[%emt 0:00:05]} 12. c4 {[%emt 0:00:18]} Bd7 {[%emt 0:00:04]} 13. Bb2 {[%emt 0:00:15] E04: Open Catalan: 5 Nf3.} Rfc8 {[%emt 0:00:06]} 14. c5 {[%emt 0:04:54]} Be8 {[%emt 0:00:40]} 15. Nfd2 {[%emt 0:07:11]} b6 {[%emt 0:00:21]} 16. cxb6 {[%emt 0:03:57]} axb6 {[%emt 0:00:03]} 17. Nc4 {[%emt 0:01:46]} Rab8 {[%emt 0:00:05]} 18. Nd6 {[%emt 0:03:07]} Bxd6 {[%emt 0:00:10]} 19. Rxd6 {[%emt 0:00:02]} Na5 {[%emt 0:00:07]} 20. Nxa5 {[%emt 0:04:39]} bxa5 {[%emt 0:00:27] [#]} 21. Rd2 $146 {[%emt 0:02:31]} ({Predecessor:} 21. Be5 Rb4 22. Rad1 h6 23. Bf3 Kh7 24. Rd8 Rxd8 25. Rxd8 Bb5 26. Ra8 Ra4 27. Bc3 Rxa2 28. Rxa5 Rxa5 29. Bxa5 {½-½ (44) Vidit,S (2723)-Praggnanandhaa,R (2619) chess24.com INT 2022}) 21... h6 {[%emt 0:14:36] The position is equal.} 22. Bf3 {[%emt 0:19:35]} Rb4 {[%emt 0:08:27]} 23. Rad1 {[%emt 0:09:16]} Kh7 {[%emt 0:02:54]} 24. Ba3 {[%emt 0:17:53] This bishop pair is nice.} Ra4 {[%emt 0:04:18]} 25. Be7 {[%emt 0:00:23]} Ne4 {[%emt 0:05:27]} 26. Rd8 {[%emt 0:05:19]} Rxd8 {[%emt 0:01:22]} 27. Rxd8 {[%emt 0:00:03]} Bc6 {[%emt 0:01:03]} 28. a3 {[%emt 0:02:26]} Bd5 {[%emt 0:02:56]} 29. h4 {[%emt 0:05:35]} Rc4 {[%emt 0:02:25]} 30. Rd7 {[%emt 0:01:41]} Nc3 {[%emt 0:07:32][%cal Oc3e2]} 31. Bxd5 Nxd5 {[%emt 0:00:02]} 32. Bd8 {[%emt 0:05:42][%csl LRa5,LRf7]} Kg8 {[%emt 0:07:03]} 33. Bxa5 {[%emt 0:01:36]} Ra4 {[%emt 0:00:06][%csl LRa3,LRa5]} 34. Bb4 {[%emt 0:02:22]} Nxb4 {[%emt 0:00:07]} 35. axb4 {[%emt 0:00:02]} Rxb4 {[%emt 0:00:07] A rather calm draw.  Weighted Error Value: White=0.02 (flawless) /Black=0.00 (flawless)} 1/2-1/2

[Event "VII Totalizator Sportowy 2022"]
[Site "Bydgoszcz"]
[Date "2022.06.30"]
[Round "6.8"]
[White "Janik, Igor"]
[Black "Navaratnam, Rohan Shan Tze"]
[Result "1-0"]
[ECO "A13"]
[WhiteElo "2525"]
[BlackElo "2071"]
[Annotator "TA"]
[PlyCount "105"]
[EventDate "2022.06.25"]
[EventType "swiss"]
[EventCountry "POL"]
[SourceTitle "playchess.com"]
[Source "ChessBase"]
[SourceQuality "1"]
[TimeControl "40/5400+30:1800+30"]

{[%evp 9,105,-25,18,12,25,7,43,22,12,0,8,8,2,-6,1,-20,-19,-20,0,-22,0,-12,0,0,55,58,71,65,72,64,72,77,67,67,80,75,77,71,104,91,85,70,117,117,129,77,77,68,131,136,135,132,144,144,153,147,172,114,207,205,207,195,326,325,301,161,176,176,184,184,184,177,213,220,220,220,295,213,435,435,411,410,389,375,256,220,1968,1983,1313,1161,2637,2209,29959,1493,29977,29975,5241,5241]} 1. c4 {[%emt 0:00:01]} e6 {[%emt 0:00:07]} 2. g3 {[%emt 0:00:51]} d5 {[%emt 0:00:12]} 3. Bg2 {[%emt 0:00:02]} c5 {[%emt 0:00:48]} 4. d3 {[%emt 0:00:36]} Nf6 {[%emt 0:02:44]} 5. Bg5 {[%emt 0:00:27]} dxc4 {[%emt 0:02:46]} 6. dxc4 {[%emt 0:02:15] A13: English Opening: 1...e6.} Qxd1+ {[%emt 0:00:44]} 7. Kxd1 {[%emt 0:00:01] [#]} h6 $146 {[%emt 0:10:16]} ({Predecessor:} 7... Ng4 8. Ke1 h6 9. Bd2 Be7 10. Bc3 O-O 11. h3 Nf6 12. Nd2 Nbd7 13. e3 Rb8 {½-½ (28) Assaubayeva,D-Dragieva,D (1866) Krakow 2011}) 8. Bf4 {[%emt 0:00:20] White is slightly better.} g5 {[%emt 0:01:18]} 9. Be5 {[%emt 0:02:17]} Nbd7 {[%emt 0:05:05]} 10. Bc3 {[%emt 0:00:05]} Bg7 {[%emt 0:00:17]} 11. h4 {[%emt 0:02:00]} g4 {[%emt 0:05:19]} 12. h5 {[%emt 0:06:29]} Ke7 {[%emt 0:01:12]} 13. Rh4 {[%emt 0:00:50]} Rg8 {[%emt 0:05:28]} 14. Nd2 {[%emt 0:06:12]} Bh8 {[%emt 0:08:16]} 15. Kc2 {[%emt 0:10:35]} Rg5 {[%emt 0:01:47]} 16. e4 {[%emt 0:04:57]} e5 {[%emt 0:05:40]} (16... Rb8 $11) 17. Ne2 {[%emt 0:02:03]} Rxh5 {[%emt 0:01:43]} 18. Rxh5 {[%emt 0:02:25]} Nxh5 {[%emt 0:00:04]} 19. Rh1 {[%emt 0:00:20][%cal Ba1h1,Bh1h6,Bh6h4][%mdl 32]} Nhf6 {[%emt 0:00:07]} 20. Rxh6 {[%emt 0:01:05]} Bg7 {[%emt 0:00:03]} 21. Rh4 {[%emt 0:02:45]} b6 {[%emt 0:01:18]} 22. Nf1 {[%emt 0:01:10]} Bb7 {[%emt 0:00:19]} 23. Ne3 {[%emt 0:00:09]} Rh8 {[%emt 0:02:25]} 24. Nf5+ {[%emt 0:01:04]} (24. Kd3 {is interesting.} Ba6 25. Nf5+ Kf8 26. Rxh8+ Bxh8 27. a4) 24... Kf8 {[%emt 0:00:27]} 25. Kd3 {[%emt 0:00:12] White is more active.} Rxh4 {[%emt 0:05:43]} ({Better is} 25... Ne8 $14) 26. gxh4 $16 {[%emt 0:00:48]} Kg8 {[%emt 0:06:53]} 27. Nd6 {[%emt 0:04:26]} (27. Neg3 $142) 27... Ba8 {[%emt 0:00:56]} 28. Ng3 {[%emt 0:02:51]} Bf8 {[%emt 0:03:07]} ({Black should try} 28... Nb8 $1 $14) 29. Nb5 {[%emt 0:01:48]} a6 {[%emt 0:00:06]} 30. Nc7 {[%emt 0:00:08][%csl LRa6,LRa8]} Bb7 {[%emt 0:00:04]} 31. Nd5 {[%emt 0:01:36]} Ne8 {[%emt 0:04:16]} 32. Bf1 {[%emt 0:06:29]} Bxd5 {[%emt 0:14:18]} 33. exd5 {[%emt 0:01:17]} (33. cxd5 $18 Bh6 34. Nf5) 33... Kh7 {[%emt 0:00:54]} (33... b5 $16) 34. Be2 $18 {[%emt 0:01:28]} Nef6 {[%emt 0:00:56]} 35. Ne4 {[%emt 0:01:13]} Nxe4 {[%emt 0:00:21]} (35... Kg6 {keeps fighting.}) 36. Kxe4 {[%emt 0:01:53][%mdl 4096] Endgame KBB-KBN} Kg6 {[%emt 0:00:14]} 37. Bxg4 {[%emt 0:08:44]} (37. h5+ $142 Kxh5 38. Kf5) 37... Nf6+ {[%emt 0:00:06]} 38. Kf3 {[%emt 0:00:03]} e4+ {[%emt 0:00:18]} 39. Kg3 {[%emt 0:00:08][%cal Oh4h5] Black must now prevent h5+!} Bd6+ {[%emt 0:01:03]} 40. Kh3 {[%emt 0:00:00]} Nxg4 {[%emt 0:00:00]} 41. Kxg4 {[%emt 0:00:03] [#] And now h5+ would win. KB-KB} f5+ {[%emt 0:02:42]} 42. Kh3 {[%emt 0:00:01]} b5 {[%emt 0:03:11]} 43. b3 {[%emt 0:03:59][%cal Bb2b3,Bb3c4][%mdl 32] aiming for cxb5.} bxc4 $2 {[%emt 0:15:06]} (43... b4 44. Bd2 Kh5) 44. bxc4 {[%emt 0:00:15]} Kh5 {[%emt 0:00:15]} 45. Bf6 {[%emt 0:03:58]} Kg6 {[%emt 0:02:27]} 46. Bd8 {[%emt 0:01:29]} Kh5 {[%emt 0:00:35]} 47. Bg5 {[%emt 0:00:22]} Bf8 $2 {[%emt 0:09:40]} (47... Kg6 48. Kg2 Kh5) 48. Bf4 {[%emt 0:04:44] [#] Intending d6 and mate.} Be7 {[%emt 0:00:06]} 49. Bg3 {[%emt 0:01:50] Strongly threatening d6.} Bd8 {[%emt 0:00:28]} 50. d6 {[%emt 0:02:03]} Kg6 {[%emt 0:00:58]} 51. d7 {[%emt 0:01:22]} (51. Bf4 $142 Bb6 52. d7 Ba5 53. Bg5 f4 54. Kg4 Bc7 55. Bxf4 Bb6 56. Bg5) 51... Kf6 {[%emt 0:00:28]} 52. h5 {[%emt 0:00:10]} Ke6 {[%emt 0:00:17]} 53. Bh4 {[%emt 0:00:11] Weighted Error Value: White=0.13 (very precise) /Black=0.55} 1-0